[Event "Titled Tuesday Blitz October 25 Late 2022"]
[White "Harish, Neeraj"]
[Black "Rodriguez Santiago, Jaime"]
[WhiteFideId "30958130"]
[BlackFideId "3100898"]
[WhiteElo "1815"]
[BlackElo "2025"]
[Result "0-1"]
[Round "06"]
[TimeControl "180+1"]
[Date "2022.10.26"]
[WhiteClock "0:00:17"]
[BlackClock "0:00:20"]

1. e4 {[%clk 0:03:00]}  g6 {[%clk 0:02:57]} 2. d4 {[%clk 0:02:59]}  d6 {[%clk 0:02:55]} 3. Nc3 {[%clk 0:02:58]}  c6 {[%clk 0:02:54]} 4. Nf3 {[%clk 0:02:56]}  Bg7 {[%clk 0:02:52]} 5. Bd3 {[%clk 0:02:55]}  b5 {[%clk 0:02:48]} 6. Be3 {[%clk 0:02:51]}  Bg4 {[%clk 0:02:45]} 7. h3 {[%clk 0:02:47]}  Bxf3 {[%clk 0:02:44]} 8. Qxf3 {[%clk 0:02:48]}  Nd7 {[%clk 0:02:39]} 9. O-O-O {[%clk 0:02:45]}  Qc7 {[%clk 0:02:13]} 10. h4 {[%clk 0:02:42]}  h5 {[%clk 0:02:07]} 11. g4 {[%clk 0:02:10]}  Ngf6 {[%clk 0:02:03]} 12. g5 {[%clk 0:02:06]}  Ng4 {[%clk 0:02:02]} 13. Kb1 {[%clk 0:01:46]}  b4 {[%clk 0:01:45]} 14. Ne2 {[%clk 0:01:44]}  Rb8 {[%clk 0:01:36]} 15. Bd2 {[%clk 0:01:32]}  c5 {[%clk 0:01:26]} 16. dxc5 {[%clk 0:01:24]}  dxc5 {[%clk 0:01:24]} 17. Bc4 {[%clk 0:01:06]}  Nge5 {[%clk 0:01:15]} 18. Qb3 {[%clk 0:01:04]}  Nxc4 {[%clk 0:01:14]} 19. Qxc4 {[%clk 0:01:05]}  O-O {[%clk 0:01:13]} 20. f4 {[%clk 0:01:03]}  Nb6 {[%clk 0:01:12]} 21. Qd3 {[%clk 0:00:58]}  Na4 {[%clk 0:01:03]} 22. b3 {[%clk 0:00:51]}  Nb2 {[%clk 0:00:59]} 23. Qf3 {[%clk 0:00:49]}  Nxd1 {[%clk 0:00:59]} 24. Rxd1 {[%clk 0:00:50]}  c4 {[%clk 0:00:57]} 25. f5 {[%clk 0:00:48]}  Qe5 {[%clk 0:00:49]} 26. c3 {[%clk 0:00:37]}  cxb3 {[%clk 0:00:49]} 27. axb3 {[%clk 0:00:37]}  bxc3 {[%clk 0:00:49]} 28. Bxc3 {[%clk 0:00:36]}  Rxb3+ {[%clk 0:00:49]} 29. Kc2 {[%clk 0:00:36]}  Qb5 {[%clk 0:00:31]} 30. f6 {[%clk 0:00:34]}  exf6 {[%clk 0:00:30]} 31. gxf6 {[%clk 0:00:29]}  Bh6 {[%clk 0:00:28]} 32. Nd4 {[%clk 0:00:29]}  Rxc3+ {[%clk 0:00:26]} 33. Qxc3 {[%clk 0:00:28]}  Qe5 {[%clk 0:00:23]} 34. Nc6 {[%clk 0:00:19]}  Qxe4+ {[%clk 0:00:22]} 35. Kb2 {[%clk 0:00:19]}  Kh7 {[%clk 0:00:20]} 36. Ne7 {[%clk 0:00:18]}  Rb8+ {[%clk 0:00:20]} 37. Ka1 {[%clk 0:00:17]}  Qa4+ {[%clk 0:00:20]} 0-1


[Site "https://www.chess.com"]

[Event "Titled Tuesday Blitz October 25 Late 2022"]
[White "Howell, David W L"]
[Black "Deac, Bogdan-Daniel"]
[WhiteFideId "410608"]
[BlackFideId "1226380"]
[WhiteElo "2567"]
[BlackElo "2648"]
[Result "1/2-1/2"]
[Round "06"]
[TimeControl "180+1"]
[Date "2022.10.26"]
[WhiteClock "0:00:29"]
[BlackClock "0:00:20"]

1. e4 {[%clk 0:02:59]}  e5 {[%clk 0:02:59]} 2. Nf3 {[%clk 0:02:57]}  Nf6 {[%clk 0:03:00]} 3. Nc3 {[%clk 0:02:53]}  Nc6 {[%clk 0:02:59]} 4. Bb5 {[%clk 0:02:53]}  Bb4 {[%clk 0:02:58]} 5. O-O {[%clk 0:02:50]}  O-O {[%clk 0:02:57]} 6. d3 {[%clk 0:02:50]}  Bxc3 {[%clk 0:02:55]} 7. bxc3 {[%clk 0:02:51]}  d6 {[%clk 0:02:56]} 8. Bxc6 {[%clk 0:02:38]}  bxc6 {[%clk 0:02:55]} 9. h3 {[%clk 0:02:39]}  Nd7 {[%clk 0:02:48]} 10. Re1 {[%clk 0:02:31]}  Re8 {[%clk 0:02:47]} 11. Rb1 {[%clk 0:02:25]}  c5 {[%clk 0:02:45]} 12. Nd2 {[%clk 0:02:12]}  Nf8 {[%clk 0:02:43]} 13. Nf1 {[%clk 0:02:01]}  f5 {[%clk 0:02:34]} 14. exf5 {[%clk 0:01:57]}  Bxf5 {[%clk 0:02:35]} 15. Ng3 {[%clk 0:01:57]}  Be6 {[%clk 0:02:34]} 16. c4 {[%clk 0:01:47]}  Ng6 {[%clk 0:02:33]} 17. Qh5 {[%clk 0:01:43]}  Bf7 {[%clk 0:01:51]} 18. Ne4 {[%clk 0:01:23]}  Nf8 {[%clk 0:01:38]} 19. Qg5 {[%clk 0:01:18]}  Ne6 {[%clk 0:01:08]} 20. Qxd8 {[%clk 0:01:18]}  Rexd8 {[%clk 0:00:59]} 21. Be3 {[%clk 0:01:19]}  h6 {[%clk 0:00:55]} 22. Rb7 {[%clk 0:01:16]}  Be8 {[%clk 0:00:53]} 23. f3 {[%clk 0:01:12]}  Bc6 {[%clk 0:00:50]} 24. Rb2 {[%clk 0:01:08]}  Rdb8 {[%clk 0:00:46]} 25. Reb1 {[%clk 0:01:07]}  Rb6 {[%clk 0:00:46]} 26. Nc3 {[%clk 0:00:58]}  Kf7 {[%clk 0:00:40]} 27. Kf2 {[%clk 0:00:57]}  g5 {[%clk 0:00:38]} 28. Rb3 {[%clk 0:00:52]}  Kg6 {[%clk 0:00:31]} 29. Ra3 {[%clk 0:00:41]}  Rab8 {[%clk 0:00:24]} 30. Rxb6 {[%clk 0:00:39]}  axb6 {[%clk 0:00:24]} 31. Ra7 {[%clk 0:00:38]}  Ra8 {[%clk 0:00:22]} 32. Rxa8 {[%clk 0:00:36]}  Bxa8 {[%clk 0:00:23]} 33. a4 {[%clk 0:00:31]}  Bc6 {[%clk 0:00:22]} 34. Nb5 {[%clk 0:00:31]}  h5 {[%clk 0:00:20]} 35. Bd2 {[%clk 0:00:29]} 1/2-1/2


[Site "https://www.chess.com"]

[Event "Titled Tuesday Blitz October 25 Late 2022"]
[White "Jobava, Baadur"]
[Black "Pap, Gyula"]
[WhiteFideId "13601520"]
[BlackFideId "725323"]
[WhiteElo "3073"]
[BlackElo "2853"]
[Result "1-0"]
[Round "06"]
[TimeControl "180+1"]
[Date "2022.10.26"]
[WhiteClock "0:00:38"]
[BlackClock "0:00:01"]

1. b3 {[%clk 0:03:00]}  d5 {[%clk 0:02:58]} 2. Bb2 {[%clk 0:02:59]}  Bf5 {[%clk 0:02:58]} 3. d3 {[%clk 0:03:00]}  e6 {[%clk 0:02:58]} 4. Nd2 {[%clk 0:03:01]}  h6 {[%clk 0:02:59]} 5. g3 {[%clk 0:03:00]}  Bh7 {[%clk 0:02:59]} 6. Bg2 {[%clk 0:03:01]}  Nf6 {[%clk 0:02:59]} 7. e4 {[%clk 0:03:01]}  a5 {[%clk 0:02:58]} 8. a3 {[%clk 0:03:01]}  Be7 {[%clk 0:02:49]} 9. Nh3 {[%clk 0:03:01]}  Nc6 {[%clk 0:02:23]} 10. exd5 {[%clk 0:02:56]}  exd5 {[%clk 0:02:21]} 11. Nf4 {[%clk 0:02:54]}  Nb8 {[%clk 0:01:58]} 12. O-O {[%clk 0:02:47]}  O-O {[%clk 0:01:59]} 13. Re1 {[%clk 0:02:44]}  c6 {[%clk 0:01:54]} 14. c4 {[%clk 0:02:43]}  dxc4 {[%clk 0:01:40]} 15. bxc4 {[%clk 0:02:41]}  Nbd7 {[%clk 0:01:32]} 16. d4 {[%clk 0:02:41]}  Re8 {[%clk 0:01:29]} 17. h4 {[%clk 0:02:31]}  Bd6 {[%clk 0:01:26]} 18. Rxe8+ {[%clk 0:02:32]}  Qxe8 {[%clk 0:01:23]} 19. Ne2 {[%clk 0:02:30]}  Rd8 {[%clk 0:01:15]} 20. Nc3 {[%clk 0:02:27]}  Nf8 {[%clk 0:01:11]} 21. Qb3 {[%clk 0:02:25]}  Ne6 {[%clk 0:01:08]} 22. Nf3 {[%clk 0:02:23]}  Bf8 {[%clk 0:00:45]} 23. Rd1 {[%clk 0:02:21]}  Qe7 {[%clk 0:00:41]} 24. Qb6 {[%clk 0:02:01]}  Qc7 {[%clk 0:00:38]} 25. Qb3 {[%clk 0:01:56]}  Bf5 {[%clk 0:00:31]} 26. Ne2 {[%clk 0:01:45]}  Be4 {[%clk 0:00:29]} 27. Qe3 {[%clk 0:01:36]}  b5 {[%clk 0:00:25]} 28. d5 {[%clk 0:01:10]}  Bc5 {[%clk 0:00:25]} 29. Nfd4 {[%clk 0:01:02]}  cxd5 {[%clk 0:00:21]} 30. cxb5 {[%clk 0:01:00]}  Qb6 {[%clk 0:00:13]} 31. a4 {[%clk 0:00:59]}  Ng4 {[%clk 0:00:12]} 32. Qc3 {[%clk 0:00:55]}  Nf6 {[%clk 0:00:04]} 33. Qe1 {[%clk 0:00:48]}  Bb4 {[%clk 0:00:04]} 34. Qf1 {[%clk 0:00:47]}  Nc5 {[%clk 0:00:02]} 35. Nc6 {[%clk 0:00:46]}  Re8 {[%clk 0:00:03]} 36. Bd4 {[%clk 0:00:43]}  Ba3 {[%clk 0:00:02]} 37. Nc3 {[%clk 0:00:41]}  Bb4 {[%clk 0:00:01]} 38. Bxf6 {[%clk 0:00:38]}  gxf6 {[%clk 0:00:02]} 39. Nxd5 {[%clk 0:00:37]}  Bxd5 {[%clk 0:00:01]} 40. Bxd5 {[%clk 0:00:38]} 1-0


[Site "https://www.chess.com"]

[Event "Titled Tuesday Blitz October 25 Late 2022"]
[White "Kabanova, Ekaterina"]
[Black "Gardezi, Arsal"]
[WhiteFideId "24112917"]
[BlackFideId "30949521"]
[WhiteElo "2141"]
[BlackElo "1906"]
[Result "1-0"]
[Round "06"]
[TimeControl "180+1"]
[Date "2022.10.26"]
[WhiteClock "0:00:36"]
[BlackClock "0:00:17"]

1. c4 {[%clk 0:02:13]}  Nf6 {[%clk 0:02:59]} 2. e3 {[%clk 0:02:13]}  e5 {[%clk 0:02:58]} 3. a3 {[%clk 0:02:14]}  d5 {[%clk 0:02:56]} 4. cxd5 {[%clk 0:02:15]}  Nxd5 {[%clk 0:02:55]} 5. Qc2 {[%clk 0:02:15]}  Be6 {[%clk 0:02:54]} 6. Nf3 {[%clk 0:02:16]}  Nc6 {[%clk 0:02:52]} 7. Bb5 {[%clk 0:02:16]}  Bd6 {[%clk 0:02:49]} 8. Bxc6+ {[%clk 0:02:16]}  bxc6 {[%clk 0:02:48]} 9. Qxc6+ {[%clk 0:02:17]}  Kf8 {[%clk 0:02:47]} 10. Nc3 {[%clk 0:02:18]}  Nxc3 {[%clk 0:02:42]} 11. Qxc3 {[%clk 0:02:19]}  e4 {[%clk 0:02:34]} 12. Ne5 {[%clk 0:02:13]}  Qg5 {[%clk 0:02:29]} 13. f4 {[%clk 0:01:58]}  exf3 {[%clk 0:02:15]} 14. Nxf3 {[%clk 0:01:47]}  Qxg2 {[%clk 0:02:12]} 15. Rf1 {[%clk 0:01:45]}  Bd5 {[%clk 0:01:23]} 16. Nd4 {[%clk 0:00:58]}  Bxh2 {[%clk 0:01:01]} 17. Ne2 {[%clk 0:00:55]}  Bf3 {[%clk 0:00:51]} 18. Qc4 {[%clk 0:00:37]}  Bxe2 {[%clk 0:00:17]} 19. Qxf7# {[%clk 0:00:36]} 1-0


[Site "https://www.chess.com"]

[Event "Titled Tuesday Blitz October 25 Late 2022"]
[White "Karacsonyi, Gellert"]
[Black "Badmatsyrenov, Oleg"]
[WhiteFideId "764620"]
[BlackFideId "24115762"]
[WhiteElo "2308"]
[BlackElo "2403"]
[Result "1-0"]
[Round "06"]
[TimeControl "180+1"]
[Date "2022.10.26"]
[WhiteClock "0:00:56"]
[BlackClock "0:00:02"]

1. e4 {[%clk 0:03:00]}  c5 {[%clk 0:02:54]} 2. Nf3 {[%clk 0:03:00]}  e6 {[%clk 0:02:54]} 3. d4 {[%clk 0:03:01]}  cxd4 {[%clk 0:02:55]} 4. Nxd4 {[%clk 0:03:01]}  a6 {[%clk 0:02:56]} 5. c4 {[%clk 0:03:02]}  Nf6 {[%clk 0:02:55]} 6. Nc3 {[%clk 0:03:02]}  Qc7 {[%clk 0:02:56]} 7. Be2 {[%clk 0:02:55]}  Bb4 {[%clk 0:02:51]} 8. Qd3 {[%clk 0:02:55]}  Nc6 {[%clk 0:02:50]} 9. Nxc6 {[%clk 0:02:47]}  dxc6 {[%clk 0:02:50]} 10. a3 {[%clk 0:02:37]}  Be7 {[%clk 0:02:44]} 11. O-O {[%clk 0:02:31]}  e5 {[%clk 0:02:44]} 12. Qg3 {[%clk 0:02:24]}  O-O {[%clk 0:02:40]} 13. Bh6 {[%clk 0:02:21]}  Ne8 {[%clk 0:02:41]} 14. b4 {[%clk 0:02:17]}  Qd6 {[%clk 0:02:34]} 15. Be3 {[%clk 0:02:15]}  Qg6 {[%clk 0:02:30]} 16. Bb6 {[%clk 0:02:04]}  Be6 {[%clk 0:02:22]} 17. Rad1 {[%clk 0:02:03]}  Qxg3 {[%clk 0:01:34]} 18. hxg3 {[%clk 0:02:04]}  Nf6 {[%clk 0:01:09]} 19. f3 {[%clk 0:02:03]}  Nd7 {[%clk 0:01:03]} 20. Be3 {[%clk 0:01:25]}  a5 {[%clk 0:01:02]} 21. c5 {[%clk 0:01:21]}  axb4 {[%clk 0:01:01]} 22. axb4 {[%clk 0:01:22]}  Ra3 {[%clk 0:00:56]} 23. Rc1 {[%clk 0:01:22]}  Nb8 {[%clk 0:00:40]} 24. f4 {[%clk 0:01:21]}  Na6 {[%clk 0:00:24]} 25. Bxa6 {[%clk 0:01:19]}  Rxa6 {[%clk 0:00:19]} 26. f5 {[%clk 0:01:18]}  Bc8 {[%clk 0:00:14]} 27. Ra1 {[%clk 0:01:15]}  Rd8 {[%clk 0:00:08]} 28. Rxa6 {[%clk 0:01:05]}  bxa6 {[%clk 0:00:09]} 29. Kf2 {[%clk 0:01:06]}  Rd3 {[%clk 0:00:08]} 30. Na4 {[%clk 0:00:56]}  Rb3 {[%clk 0:00:04]} 31. Nb6 {[%clk 0:00:55]}  Bb7 {[%clk 0:00:02]} 32. Rd1 {[%clk 0:00:56]} 1-0


[Site "https://www.chess.com"]

[Event "Titled Tuesday Blitz October 25 Late 2022"]
[White "Korchmar, Vasiliy"]
[Black "Dardha, Daniel"]
[WhiteFideId "24131750"]
[BlackFideId "240990"]
[WhiteElo "2370"]
[BlackElo "2528"]
[Result "0-1"]
[Round "06"]
[TimeControl "180+1"]
[Date "2022.10.26"]
[WhiteClock "0:00:05"]
[BlackClock "0:00:07"]

1. e4 {[%clk 0:03:00]}  e5 {[%clk 0:03:00]} 2. Nf3 {[%clk 0:03:01]}  Nc6 {[%clk 0:03:00]} 3. Bc4 {[%clk 0:03:01]}  Bc5 {[%clk 0:02:59]} 4. c3 {[%clk 0:03:00]}  Nf6 {[%clk 0:02:59]} 5. d3 {[%clk 0:03:01]}  d6 {[%clk 0:02:57]} 6. Bg5 {[%clk 0:03:01]}  h6 {[%clk 0:02:56]} 7. Bh4 {[%clk 0:03:01]}  a5 {[%clk 0:02:54]} 8. Nbd2 {[%clk 0:02:58]}  Ba7 {[%clk 0:02:47]} 9. O-O {[%clk 0:02:58]}  g5 {[%clk 0:02:47]} 10. Bg3 {[%clk 0:02:58]}  g4 {[%clk 0:02:34]} 11. Nh4 {[%clk 0:02:56]}  Nh5 {[%clk 0:02:35]} 12. d4 {[%clk 0:02:39]}  exd4 {[%clk 0:02:31]} 13. Nf5 {[%clk 0:02:27]}  Nxg3 {[%clk 0:02:28]} 14. hxg3 {[%clk 0:02:28]}  dxc3 {[%clk 0:02:23]} 15. Qxg4 {[%clk 0:02:12]}  cxd2 {[%clk 0:01:55]} 16. Bxf7+ {[%clk 0:02:06]}  Kxf7 {[%clk 0:01:56]} 17. Qg7+ {[%clk 0:02:00]}  Ke6 {[%clk 0:01:56]} 18. Rad1 {[%clk 0:01:13]}  Qf8 {[%clk 0:01:36]} 19. Qxc7 {[%clk 0:01:12]}  Bb8 {[%clk 0:01:25]} 20. Qb6 {[%clk 0:00:52]}  Kf6 {[%clk 0:01:14]} 21. Rxd2 {[%clk 0:00:50]}  Bxf5 {[%clk 0:01:13]} 22. exf5 {[%clk 0:00:50]}  Rh7 {[%clk 0:01:07]} 23. Re1 {[%clk 0:00:47]}  Re7 {[%clk 0:01:06]} 24. Rde2 {[%clk 0:00:39]}  Rxe2 {[%clk 0:00:55]} 25. Rxe2 {[%clk 0:00:40]}  Ba7 {[%clk 0:00:48]} 26. Qxb7 {[%clk 0:00:39]}  Ne5 {[%clk 0:00:46]} 27. Kh1 {[%clk 0:00:25]}  Qc8 {[%clk 0:00:41]} 28. Qe4 {[%clk 0:00:19]}  Qc1+ {[%clk 0:00:16]} 29. Re1 {[%clk 0:00:18]}  Qc8 {[%clk 0:00:14]} 30. f4 {[%clk 0:00:17]}  Qe8 {[%clk 0:00:06]} 31. fxe5+ {[%clk 0:00:15]}  dxe5 {[%clk 0:00:07]} 32. Rd1 {[%clk 0:00:05]}  Qh5+ {[%clk 0:00:07]} 0-1


[Site "https://www.chess.com"]

[Event "Titled Tuesday Blitz October 25 Late 2022"]
[White "Korobov, Anton"]
[Black "Barria Zuniga, Daniel"]
[WhiteFideId "14105730"]
[BlackFideId "3400816"]
[WhiteElo "2635"]
[BlackElo "2414"]
[Result "1-0"]
[Round "06"]
[TimeControl "180+1"]
[Date "2022.10.26"]
[WhiteClock "0:00:53"]
[BlackClock "0:00:02"]

1. d4 {[%clk 0:03:00]}  d5 {[%clk 0:02:54]} 2. c4 {[%clk 0:03:00]}  e6 {[%clk 0:02:55]} 3. Nc3 {[%clk 0:03:01]}  Nf6 {[%clk 0:02:54]} 4. cxd5 {[%clk 0:03:01]}  exd5 {[%clk 0:02:55]} 5. Bg5 {[%clk 0:03:00]}  c6 {[%clk 0:02:56]} 6. e3 {[%clk 0:03:00]}  Qb6 {[%clk 0:02:56]} 7. Bd3 {[%clk 0:02:44]}  Qxb2 {[%clk 0:02:49]} 8. Nge2 {[%clk 0:02:44]}  Be7 {[%clk 0:02:45]} 9. O-O {[%clk 0:02:40]}  O-O {[%clk 0:02:33]} 10. a4 {[%clk 0:02:29]}  a5 {[%clk 0:02:22]} 11. Rb1 {[%clk 0:02:06]}  Qa3 {[%clk 0:02:21]} 12. Qc2 {[%clk 0:02:06]}  Qd6 {[%clk 0:02:07]} 13. Bxf6 {[%clk 0:02:06]}  Bxf6 {[%clk 0:02:07]} 14. Bxh7+ {[%clk 0:02:07]}  Kh8 {[%clk 0:02:08]} 15. Bf5 {[%clk 0:02:07]}  Qd8 {[%clk 0:01:26]} 16. Bxc8 {[%clk 0:01:57]}  Qxc8 {[%clk 0:01:27]} 17. Qb3 {[%clk 0:01:57]}  Na6 {[%clk 0:01:12]} 18. Qxb7 {[%clk 0:01:57]}  Nb4 {[%clk 0:01:13]} 19. Qxc8 {[%clk 0:01:57]}  Rfxc8 {[%clk 0:01:13]} 20. Rfc1 {[%clk 0:01:53]}  Kg8 {[%clk 0:01:11]} 21. Nf4 {[%clk 0:01:44]}  Kf8 {[%clk 0:01:10]} 22. g3 {[%clk 0:01:41]}  Ke7 {[%clk 0:01:08]} 23. Nd1 {[%clk 0:01:36]}  Kd6 {[%clk 0:01:03]} 24. Nb2 {[%clk 0:01:36]}  c5 {[%clk 0:01:02]} 25. dxc5+ {[%clk 0:01:34]}  Rxc5 {[%clk 0:01:03]} 26. Rxc5 {[%clk 0:01:33]}  Kxc5 {[%clk 0:01:04]} 27. Nbd3+ {[%clk 0:01:29]}  Nxd3 {[%clk 0:01:03]} 28. Nxd3+ {[%clk 0:01:29]}  Kc4 {[%clk 0:01:04]} 29. Nf4 {[%clk 0:01:26]}  Bc3 {[%clk 0:00:50]} 30. Rb7 {[%clk 0:01:25]}  Bb4 {[%clk 0:00:43]} 31. Rxf7 {[%clk 0:01:23]}  Kb3 {[%clk 0:00:42]} 32. Nxd5 {[%clk 0:01:23]}  Rd8 {[%clk 0:00:39]} 33. e4 {[%clk 0:01:17]}  Kxa4 {[%clk 0:00:37]} 34. Rxg7 {[%clk 0:01:17]}  Kb3 {[%clk 0:00:35]} 35. Rb7 {[%clk 0:01:16]}  Kc4 {[%clk 0:00:22]} 36. Kg2 {[%clk 0:01:15]}  Bd2 {[%clk 0:00:17]} 37. f4 {[%clk 0:01:13]}  Kd4 {[%clk 0:00:13]} 38. Kf3 {[%clk 0:01:11]}  Ra8 {[%clk 0:00:12]} 39. Nb6 {[%clk 0:01:10]}  Rd8 {[%clk 0:00:12]} 40. h4 {[%clk 0:01:08]}  Bb4 {[%clk 0:00:10]} 41. h5 {[%clk 0:01:07]}  Kc5 {[%clk 0:00:10]} 42. Nd5 {[%clk 0:01:05]}  Be1 {[%clk 0:00:08]} 43. g4 {[%clk 0:01:01]}  Ra8 {[%clk 0:00:07]} 44. Rb1 {[%clk 0:00:53]}  Bd2 {[%clk 0:00:04]} 45. Rd1 {[%clk 0:00:53]}  Bb4 {[%clk 0:00:03]} 46. g5 {[%clk 0:00:54]}  a4 {[%clk 0:00:03]} 47. Rc1+ {[%clk 0:00:53]}  Kd4 {[%clk 0:00:02]} 48. Nxb4 {[%clk 0:00:53]}  a3 {[%clk 0:00:02]} 49. Nc2+ {[%clk 0:00:53]}  Kd3 {[%clk 0:00:01]} 50. Nxa3 {[%clk 0:00:54]}  Kd2 {[%clk 0:00:02]} 51. Ra1 {[%clk 0:00:53]} 1-0


[Site "https://www.chess.com"]

[Event "Titled Tuesday Blitz October 25 Late 2022"]
[White "Kravtsiv, Martyn"]
[Black "Firouzja, Alireza"]
[WhiteFideId "14113147"]
[BlackFideId "12573981"]
[WhiteElo "2694"]
[BlackElo "2903"]
[Result "0-1"]
[Round "06"]
[TimeControl "180+1"]
[Date "2022.10.26"]
[WhiteClock "0:00:25"]
[BlackClock "0:00:08"]

1. e4 {[%clk 0:03:00]}  g6 {[%clk 0:02:52]} 2. d4 {[%clk 0:02:58]}  Bg7 {[%clk 0:02:53]} 3. Nc3 {[%clk 0:02:58]}  d6 {[%clk 0:02:53]} 4. f4 {[%clk 0:02:56]}  a6 {[%clk 0:02:53]} 5. Nf3 {[%clk 0:02:54]}  b5 {[%clk 0:02:53]} 6. Bd3 {[%clk 0:02:54]}  Bb7 {[%clk 0:02:51]} 7. e5 {[%clk 0:02:52]}  Nd7 {[%clk 0:02:35]} 8. a4 {[%clk 0:02:48]}  b4 {[%clk 0:02:29]} 9. Ne4 {[%clk 0:02:47]}  c5 {[%clk 0:02:27]} 10. e6 {[%clk 0:02:23]}  fxe6 {[%clk 0:02:24]} 11. Nfg5 {[%clk 0:02:22]}  Bd5 {[%clk 0:02:21]} 12. dxc5 {[%clk 0:02:03]}  Nxc5 {[%clk 0:01:51]} 13. Nxc5 {[%clk 0:02:01]}  dxc5 {[%clk 0:01:52]} 14. Qe2 {[%clk 0:02:01]}  Qd6 {[%clk 0:01:45]} 15. O-O {[%clk 0:01:58]}  Nh6 {[%clk 0:01:44]} 16. Bc4 {[%clk 0:01:42]}  O-O {[%clk 0:01:26]} 17. Nxe6 {[%clk 0:01:39]}  Bxe6 {[%clk 0:01:23]} 18. Qxe6+ {[%clk 0:01:35]}  Kh8 {[%clk 0:01:22]} 19. Be3 {[%clk 0:01:18]}  Nf5 {[%clk 0:01:21]} 20. Bf2 {[%clk 0:01:12]}  Qxf4 {[%clk 0:01:20]} 21. Bxc5 {[%clk 0:01:09]}  Qh4 {[%clk 0:01:16]} 22. Bf2 {[%clk 0:01:07]}  Qg5 {[%clk 0:01:11]} 23. Rad1 {[%clk 0:01:05]}  Bxb2 {[%clk 0:00:42]} 24. Bd5 {[%clk 0:01:05]}  Rad8 {[%clk 0:00:40]} 25. Qxa6 {[%clk 0:00:48]}  Ne3 {[%clk 0:00:36]} 26. h4 {[%clk 0:00:47]}  Qe5 {[%clk 0:00:24]} 27. Rde1 {[%clk 0:00:33]}  Qxd5 {[%clk 0:00:16]} 28. Bxe3 {[%clk 0:00:32]}  Bc3 {[%clk 0:00:13]} 29. Rxf8+ {[%clk 0:00:30]}  Rxf8 {[%clk 0:00:14]} 30. Rf1 {[%clk 0:00:31]}  Rxf1+ {[%clk 0:00:13]} 31. Qxf1 {[%clk 0:00:30]}  Kg7 {[%clk 0:00:14]} 32. Qb5 {[%clk 0:00:29]}  Qe4 {[%clk 0:00:13]} 33. Qe2 {[%clk 0:00:29]}  Qxh4 {[%clk 0:00:10]} 34. a5 {[%clk 0:00:29]}  Bd4 {[%clk 0:00:07]} 35. a6 {[%clk 0:00:28]}  Qe4 {[%clk 0:00:06]} 36. Kf2 {[%clk 0:00:27]}  Qf4+ {[%clk 0:00:06]} 37. Qf3 {[%clk 0:00:26]}  Bxe3+ {[%clk 0:00:06]} 38. Ke2 {[%clk 0:00:25]}  Qxf3+ {[%clk 0:00:07]} 39. Kxf3 {[%clk 0:00:25]}  Ba7 {[%clk 0:00:08]} 0-1


[Site "https://www.chess.com"]

[Event "Titled Tuesday Blitz October 25 Late 2022"]
[White "Lamaze, Simon"]
[Black "Kamsky, Gata"]
[WhiteFideId "36069264"]
[BlackFideId "2000024"]
[WhiteElo "2272"]
[BlackElo "2666"]
[Result "0-1"]
[Round "06"]
[TimeControl "180+1"]
[Date "2022.10.26"]
[WhiteClock "0:00:11"]
[BlackClock "0:00:23"]

1. d4 {[%clk 0:02:58]}  g6 {[%clk 0:02:59]} 2. c4 {[%clk 0:02:55]}  Bg7 {[%clk 0:02:59]} 3. Nc3 {[%clk 0:02:56]}  d6 {[%clk 0:02:59]} 4. e4 {[%clk 0:02:56]}  Nf6 {[%clk 0:02:58]} 5. h3 {[%clk 0:02:55]}  c6 {[%clk 0:02:53]} 6. Be3 {[%clk 0:02:54]}  a6 {[%clk 0:02:54]} 7. g4 {[%clk 0:02:39]}  b5 {[%clk 0:02:53]} 8. e5 {[%clk 0:02:30]}  Nfd7 {[%clk 0:02:41]} 9. f4 {[%clk 0:02:28]}  bxc4 {[%clk 0:02:31]} 10. Bxc4 {[%clk 0:02:15]}  Nb6 {[%clk 0:02:19]} 11. Bb3 {[%clk 0:02:12]}  a5 {[%clk 0:02:19]} 12. a3 {[%clk 0:02:00]}  Na6 {[%clk 0:02:02]} 13. Nf3 {[%clk 0:01:56]}  Nc7 {[%clk 0:02:02]} 14. Ne4 {[%clk 0:01:39]}  Nbd5 {[%clk 0:02:00]} 15. Bd2 {[%clk 0:01:35]}  a4 {[%clk 0:01:53]} 16. Ba2 {[%clk 0:01:27]}  Ne6 {[%clk 0:01:39]} 17. f5 {[%clk 0:01:17]}  gxf5 {[%clk 0:01:36]} 18. gxf5 {[%clk 0:01:18]}  Nxd4 {[%clk 0:01:36]} 19. Nxd4 {[%clk 0:01:14]}  Qb6 {[%clk 0:01:23]} 20. Bc3 {[%clk 0:00:47]}  Bxe5 {[%clk 0:01:19]} 21. Qd2 {[%clk 0:00:32]}  Nxc3 {[%clk 0:01:15]} 22. bxc3 {[%clk 0:00:30]}  d5 {[%clk 0:01:06]} 23. Nf2 {[%clk 0:00:26]}  Rg8 {[%clk 0:00:58]} 24. Rb1 {[%clk 0:00:24]}  Qc7 {[%clk 0:00:51]} 25. Rf1 {[%clk 0:00:19]}  Bxd4 {[%clk 0:00:48]} 26. Qxd4 {[%clk 0:00:18]}  Bxf5 {[%clk 0:00:48]} 27. Rb2 {[%clk 0:00:16]}  e6 {[%clk 0:00:44]} 28. Bb1 {[%clk 0:00:16]}  Bxb1 {[%clk 0:00:40]} 29. Rxb1 {[%clk 0:00:17]}  Rb8 {[%clk 0:00:34]} 30. Ke2 {[%clk 0:00:15]}  Rb3 {[%clk 0:00:29]} 31. Rxb3 {[%clk 0:00:14]}  axb3 {[%clk 0:00:29]} 32. Nd3 {[%clk 0:00:15]}  Rg2+ {[%clk 0:00:28]} 33. Rf2 {[%clk 0:00:15]}  Rxf2+ {[%clk 0:00:27]} 34. Kxf2 {[%clk 0:00:16]}  b2 {[%clk 0:00:25]} 35. Qb4 {[%clk 0:00:15]}  Qh2+ {[%clk 0:00:25]} 36. Ke3 {[%clk 0:00:15]}  Qg1+ {[%clk 0:00:24]} 37. Kf4 {[%clk 0:00:11]}  b1=Q {[%clk 0:00:23]} 0-1


[Site "https://www.chess.com"]

[Event "Titled Tuesday Blitz October 25 Late 2022"]
[White "Lawson, Eric"]
[Black "Holt, Conrad"]
[WhiteFideId "2604116"]
[BlackFideId "2034387"]
[WhiteElo "2548"]
[BlackElo "2592"]
[Result "0-1"]
[Round "06"]
[TimeControl "180+1"]
[Date "2022.10.26"]
[WhiteClock "0:00:07"]
[BlackClock "0:01:42"]

1. d4 {[%clk 0:02:57]}  d5 {[%clk 0:02:59]} 2. Bf4 {[%clk 0:02:52]}  c5 {[%clk 0:02:59]} 3. c3 {[%clk 0:02:52]}  Nc6 {[%clk 0:02:58]} 4. e3 {[%clk 0:02:51]}  Nf6 {[%clk 0:02:57]} 5. Nd2 {[%clk 0:02:48]}  Qb6 {[%clk 0:02:52]} 6. Qb3 {[%clk 0:02:44]}  c4 {[%clk 0:02:51]} 7. Qxb6 {[%clk 0:02:40]}  axb6 {[%clk 0:02:50]} 8. a3 {[%clk 0:02:37]}  b5 {[%clk 0:02:48]} 9. Rc1 {[%clk 0:02:34]}  Bf5 {[%clk 0:02:47]} 10. f3 {[%clk 0:02:27]}  e6 {[%clk 0:02:44]} 11. g4 {[%clk 0:02:25]}  Bg6 {[%clk 0:02:44]} 12. h4 {[%clk 0:02:25]}  h5 {[%clk 0:02:44]} 13. g5 {[%clk 0:02:25]}  Nd7 {[%clk 0:02:44]} 14. e4 {[%clk 0:02:25]}  Nb6 {[%clk 0:02:43]} 15. exd5 {[%clk 0:02:01]}  Nxd5 {[%clk 0:02:38]} 16. Nh3 {[%clk 0:01:54]}  Bxa3 {[%clk 0:02:31]} 17. bxa3 {[%clk 0:01:51]}  Rxa3 {[%clk 0:02:30]} 18. Bxc4 {[%clk 0:00:58]}  bxc4 {[%clk 0:02:29]} 19. Nxc4 {[%clk 0:00:58]}  Rxc3 {[%clk 0:02:29]} 20. Rxc3 {[%clk 0:00:58]}  Nxc3 {[%clk 0:02:29]} 21. Nd6+ {[%clk 0:00:59]}  Ke7 {[%clk 0:02:26]} 22. Nxb7 {[%clk 0:00:59]}  Nxd4 {[%clk 0:02:21]} 23. Kf2 {[%clk 0:00:54]}  Ra8 {[%clk 0:02:11]} 24. Be5 {[%clk 0:00:42]}  Ra2+ {[%clk 0:02:09]} 25. Ke3 {[%clk 0:00:29]}  Nf5+ {[%clk 0:02:05]} 26. Kd3 {[%clk 0:00:24]}  Nd5 {[%clk 0:01:57]} 27. Rc1 {[%clk 0:00:18]}  Nd6+ {[%clk 0:01:50]} 28. Kd4 {[%clk 0:00:15]}  Rd2+ {[%clk 0:01:49]} 29. Kc5 {[%clk 0:00:12]}  Nxb7+ {[%clk 0:01:49]} 30. Kc6 {[%clk 0:00:13]}  Nd8+ {[%clk 0:01:47]} 31. Kb5 {[%clk 0:00:10]}  f6 {[%clk 0:01:42]} 32. gxf6+ {[%clk 0:00:07]}  gxf6 {[%clk 0:01:42]} 0-1


[Site "https://www.chess.com"]